bitfinex/quotes_BTCUSD_20250119
["timestamp","ask_amount","ask_price","bid_price","bid_amount"]
[1737290384503,0.25,104650.0,104640.0,0.0863475]
[1737290384713,0.44479681,104650.0,104640.0,0.0863475]
[1737290385523,0.44479681,104650.0,104640.0,0.09591233]
[1737290385983,0.65929903,104650.0,104640.0,0.09591233]
[1737290386798,0.50929903,104650.0,104640.0,0.09591233]
[1737290387647,0.56374303,104650.0,104640.0,0.09591233]
[1737290387823,0.41374303,104650.0,104640.0,0.09591233]
[1737290388596,0.2850417,104650.0,104640.0,0.17451233]
[1737290389579,0.4350417,104650.0,104640.0,0.17451233]
[1737290390225,0.56374303,104650.0,104640.0,0.17451233]
[1737290391920,0.56374303,104650.0,104640.0,0.17541113]
[1737290392118,0.41374303,104650.0,104640.0,0.17541113]
[1737290392374,0.56374303,104650.0,104640.0,0.17541113]
[1737290393052,0.56417103,104650.0,104640.0,0.17541113]
[1737290395345,0.73570452,104650.0,104640.0,0.17541113]
[1737290396014,0.73570452,104650.0,104640.0,0.09681113]
[1737290396335,0.83126052,104650.0,104640.0,0.09681113]
[1737290397106,0.73570452,104650.0,104640.0,0.09681113]
[1737290397312,0.95016622,104650.0,104640.0,0.09681113]
[1737290398062,0.95016622,104650.0,104640.0,0.10341113]
[1737290399510,1.04572222,104650.0,104640.0,0.10341113]
[1737290399754,0.95016622,104650.0,104640.0,0.10341113]
[1737290400107,1.04572222,104650.0,104640.0,0.10341113]
[1737290400775,0.95016622,104650.0,104640.0,0.10341113]
[1737290401847,1.04572222,104650.0,104640.0,0.10341113]
[1737290402451,0.89572222,104650.0,104640.0,0.10341113]
[1737290407409,0.89572222,104650.0,104640.0,0.01046363]
[1737290407410,0.99372222,104650.0,104640.0,0.01046363]
[1737290407610,0.92152222,104650.0,104640.0,0.01046363]
[1737290407815,1.00872133,104650.0,104640.0,0.01046363]
[1737290409009,0.78168567,104650.0,104640.0,0.0008988]
[1737290410139,0.49402481,104650.0,104640.0,0.0008988]
[1737290410386,0.49378561,104650.0,104640.0,0.0008988]
[1737290410998,0.51318886,104650.0,104640.0,0.0008988]
[1737290412021,0.95739913,104650.0,104640.0,0.0008988]
[1737290414495,0.394365,104640.0,104630.0,0.00089796]
[1737290414695,0.49360581,104640.0,104630.0,0.00089796]
[1737290415738,0.49365546,104640.0,104630.0,0.00089796]
[1737290416619,0.91486573,104640.0,104630.0,0.00089796]
[1737290417295,1.03710654,104640.0,104630.0,0.00089796]
[1737290417489,0.245574,104630.0,104620.0,0.00089796]
[1737290417698,0.47341481,104630.0,104620.0,0.00089796]
[1737290418950,1.20703266,104630.0,104620.0,0.00089796]
[1737290420862,1.01990898,104630.0,104620.0,0.00089796]
[1737290421274,1.11914979,104630.0,104620.0,0.00089796]
[1737290421477,1.12790826,104630.0,104620.0,0.00089796]
[1737290421628,1.15090826,104630.0,104620.0,0.00089796]
[1737290421872,1.18090826,104630.0,104620.0,0.00089796]
[1737290422076,0.92382167,104630.0,104620.0,0.00089796]
[1737290422390,0.9425888,104630.0,104620.0,0.00089796]
[1737290422823,1.0431888,104630.0,104620.0,0.00089796]
[1737290423358,0.224184,104620.0,104610.0,0.00061981]
[1737290423560,0.32342481,104620.0,104610.0,0.00061981]
[1737290425110,0.58019946,104620.0,104610.0,0.00061981]
[1737290428421,0.79400411,104620.0,104610.0,0.00061981]
[1737290430141,0.53722946,104620.0,104610.0,0.00061981]
[1737290431960,0.54107339,104620.0,104610.0,0.00061981]
[1737290432125,0.46197339,104620.0,104610.0,0.00061981]
[1737290432334,0.58340828,104620.0,104610.0,0.00061981]
[1737290432554,0.73340828,104620.0,104610.0,0.00061981]
[1737290433201,0.56229541,104620.0,104610.0,0.00061981]
[1737290438314,1.37699541,104620.0,104610.0,0.00061981]
[1737290438901,1.37742351,104620.0,104610.0,0.00061981]
[1737290440331,1.5483584,104620.0,104610.0,0.00061981]
[1737290444211,1.76216305,104620.0,104610.0,0.00061981]
[1737290445342,1.19986764,104620.0,104610.0,0.00061981]
[1737290445466,1.15229003,104620.0,104610.0,0.00061981]
[1737290445666,1.15525704,104620.0,104610.0,0.00061981]
[1737290446433,0.7705175,104620.0,104610.0,0.00061981]
[1737290451635,0.94145239,104620.0,104610.0,0.00061981]
[1737290453287,0.91390696,104620.0,104610.0,0.17481281]
[1737290453495,0.81832296,104620.0,104610.0,0.22351281]
[1737290453694,0.39158215,104620.0,104610.0,0.37351281]
[1737290454103,0.00684261,104620.0,104610.0,0.37351281]
[1737290455158,0.00684261,104620.0,104610.0,0.38307948]
[1737290456555,0.00894694,104620.0,104610.0,0.38307948]
[1737290456759,0.00861159,104620.0,104610.0,0.38307948]
[1737290458123,0.00861159,104620.0,104610.0,0.38455948]
[1737290463345,0.00861159,104620.0,104610.0,0.37499281]
[1737290465605,0.07991981,104620.0,104610.0,0.37499281]
[1737290466030,0.07991981,104620.0,104610.0,0.47423362]
[1737290466234,0.07991981,104620.0,104610.0,0.49723362]
[1737290471288,0.00861159,104620.0,104610.0,0.49723362]
[1737290471487,4.965e-05,104640.0,104610.0,0.49723362]
[1737290471488,4.965e-05,104640.0,104630.0,0.244874]
[1737290471674,4.965e-05,104640.0,104630.0,0.35067481]
[1737290471877,4.965e-05,104640.0,104630.0,0.50067481]
[1737290477196,4.965e-05,104640.0,104630.0,0.51749713]
[1737290478138,6.5e-07,104640.0,104630.0,0.51749713]
[1737290479168,0.00731459,104640.0,104630.0,0.51749713]
[1737290479365,0.00731459,104640.0,104630.0,0.52628547]
[1737290479574,5.9e-07,104640.0,104630.0,0.52628547]
[1737290479775,4.1e-07,104640.0,104630.0,0.55497725]
[1737290479980,0.00508458,104640.0,104630.0,0.55497725]
[1737290480155,2.4e-07,104640.0,104630.0,0.55497725]
[1737290480360,0.000428,104650.0,104640.0,0.268565]
[1737290480535,0.00466303,104650.0,104640.0,0.49410581]
[1737290485622,0.00466303,104650.0,104640.0,0.51341287]
[1737290487187,0.000428,104650.0,104640.0,0.51341287]
[1737290488973,0.000428,104650.0,104640.0,0.51997287]
[1737290490815,0.000428,104650.0,104640.0,0.51341287]
[1737290491050,0.07173622,104650.0,104640.0,0.49697287]
[1737290491551,0.07173622,104650.0,104640.0,0.44827287]
[1737290493349,0.07173622,104650.0,104640.0,0.42240581]
[1737290493670,0.07173622,104650.0,104640.0,0.42896581]
[1737290495380,0.000428,104650.0,104640.0,0.42896581]
[1737290495608,0.000428,104650.0,104640.0,0.45196581]
[1737290497132,0.07173622,104650.0,104640.0,0.42896581]
[1737290499583,0.07173622,104650.0,104640.0,0.42986461]
[1737290502880,0.000428,104650.0,104640.0,0.45286461]
[1737290509644,1e-06,104650.0,104640.0,0.66598693]
[1737290509823,1e-06,104650.0,104640.0,0.75207871]
[1737290510232,1e-06,104650.0,104640.0,0.7808838]
[1737290510690,1e-06,104650.0,104640.0,1.16149227]
[1737290511712,1e-06,104650.0,104640.0,1.24607193]
[1737290512372,0.0004279,104670.0,104650.0,0.15]
[1737290512628,0.0004279,104670.0,104660.0,0.44704305]
[1737290512790,0.0004279,104670.0,104660.0,0.44608781]
[1737290513381,0.0904277,104690.0,104680.0,0.323829]
[1737290513624,0.09057014,104690.0,104680.0,0.46941213]
[1737290514157,0.09057014,104690.0,104680.0,0.51571213]
[1737290515043,0.09057014,104690.0,104680.0,0.72824971]
[1737290515214,0.09057014,104690.0,104680.0,0.71142739]
[1737290515414,0.09057014,104690.0,104680.0,0.66512739]
[1737290515624,0.09057014,104690.0,104680.0,0.58682739]
[1737290516212,0.16187836,104690.0,104680.0,0.45930484]
[1737290516428,0.16187836,104690.0,104680.0,0.43630484]
[1737290517245,0.16187836,104690.0,104680.0,0.35128981]
[1737290517441,0.16187836,104690.0,104680.0,0.35290111]
[1737290517724,0.1617906,104690.0,104680.0,0.35290111]
[1737290518193,0.1617906,104690.0,104680.0,0.35507579]
[1737290518417,0.1617906,104690.0,104680.0,0.36159579]
[1737290518957,0.1617906,104690.0,104680.0,0.35290111]
[1737290519679,0.1617906,104690.0,104680.0,0.35128981]
[1737290521330,0.1660194,104690.0,104680.0,0.35128981]
[1737290522024,0.1617906,104690.0,104680.0,0.35128981]
[1737290524081,0.09048238,104690.0,104680.0,0.252049]
[1737290524313,0.17138238,104690.0,104680.0,0.245529]
[1737290524504,0.17138238,104690.0,104680.0,0.252049]
[1737290524707,0.22028238,104690.0,104680.0,0.252049]
[1737290526113,0.09048238,104690.0,104680.0,0.252049]
[1737290526313,0.1617906,104690.0,104680.0,0.35128981]
[1737290526573,0.16597071,104690.0,104680.0,0.37428981]
[1737290526699,0.1617906,104690.0,104680.0,0.37428981]
[1737290528563,0.09048238,104690.0,104680.0,0.37428981]
[1737290529213,0.09048238,104690.0,104680.0,0.45688981]
[1737290530363,0.09048238,104690.0,104680.0,0.45850111]
[1737290533035,0.09048238,104690.0,104680.0,0.46760185]
[1737290533873,0.09466022,104690.0,104680.0,0.46760185]
[1737290534074,0.09048238,104690.0,104680.0,0.46850023]
[1737290534323,0.09466233,104690.0,104680.0,0.46850023]
[1737290534601,0.09048238,104690.0,104680.0,0.46850023]
[1737290535165,0.09466233,104690.0,104680.0,0.46850023]
[1737290535409,0.09048238,104690.0,104680.0,0.46850023]
[1737290535636,0.09466233,104690.0,104680.0,0.46850023]
[1737290535836,0.09048238,104690.0,104680.0,0.46850023]
[1737290536032,0.09466233,104690.0,104680.0,0.46850023]
[1737290536234,0.09048238,104690.0,104680.0,0.46850023]
[1737290537438,0.09048238,104690.0,104680.0,0.48736384]
[1737290538687,0.09048238,104690.0,104680.0,0.48575254]
[1737290539946,0.09048238,104690.0,104680.0,0.40315254]
[1737290540545,0.1617906,104690.0,104680.0,0.40315254]
[1737290542371,0.16597318,104690.0,104680.0,0.40315254]
[1737290543589,0.16597318,104690.0,104680.0,0.40477045]
[1737290546910,0.16597318,104690.0,104680.0,0.40315254]
[1737290547218,0.16597318,104690.0,104680.0,0.37363254]
[1737290547376,0.22236496,104690.0,104680.0,0.09642738]
[1737290547685,0.22236496,104690.0,104680.0,0.10456474]
[1737290548106,0.22236496,104690.0,104680.0,0.25456474]
[1737290549056,0.31788496,104690.0,104680.0,0.10294738]
[1737290549299,0.66712577,104690.0,104680.0,0.00089838]
[1737290550777,1.0507865,104690.0,104680.0,0.00089838]
[1737290551160,0.60602569,104690.0,104680.0,0.09642738]
[1737290551573,0.61515464,104690.0,104680.0,0.09642738]
[1737290552841,0.23149391,104690.0,104680.0,0.09642738]
[1737290553726,0.22236496,104690.0,104680.0,0.09642738]
[1737290557262,0.29367318,104690.0,104680.0,0.21866819]
[1737290557458,0.21147318,104690.0,104680.0,0.21866819]
[1737290559738,0.16597318,104690.0,104680.0,0.44976819]
[1737290559915,0.09466496,104690.0,104680.0,0.44976819]
[1737290560120,0.09466496,104690.0,104680.0,0.49646819]
[1737290561721,0.09466496,104690.0,104680.0,0.49808555]
[1737290562159,0.09466496,104690.0,104680.0,0.50460555]
[1737290562672,0.09466496,104690.0,104680.0,0.59841815]
[1737290562935,0.09466496,104690.0,104680.0,0.59680079]
[1737290566213,0.09466496,104690.0,104680.0,0.61720357]
[1737290570382,0.09416496,104690.0,104680.0,0.61720357]
[1737290570579,0.09416496,104690.0,104680.0,0.57050357]
[1737290571873,0.09416496,104690.0,104680.0,0.48564472]
[1737290572373,0.09416496,104690.0,104680.0,0.40454472]
[1737290575006,0.09416496,104690.0,104680.0,0.39802472]
[1737290575410,0.09416496,104690.0,104680.0,0.40454472]
[1737290576000,0.09416496,104690.0,104680.0,0.40293109]
[1737290576765,0.09416496,104690.0,104680.0,0.47823109]
[1737290577802,0.09416496,104690.0,104680.0,0.47984472]
[1737290578009,0.07506096,104690.0,104680.0,0.47984472]
[1737290578191,0.01774896,104690.0,104680.0,0.58275882]
[1737290578741,0.01774896,104690.0,104680.0,0.5659365]
[1737290579945,0.01774896,104690.0,104680.0,0.94780134]
[1737290580587,0.01864777,104690.0,104680.0,0.94780134]
[1737290580804,0.01864777,104690.0,104680.0,0.94618771]
[1737290581395,7.7e-07,104690.0,104680.0,0.94618771]
[1737290581668,7.7e-07,104690.0,104680.0,0.99498771]
[1737290585515,7.7e-07,104690.0,104680.0,0.90237593]
[1737290585716,7.7e-07,104690.0,104680.0,0.75527593]
[1737290585898,7.7e-07,104690.0,104680.0,0.76179593]
[1737290586285,7.7e-07,104690.0,104680.0,0.61507822]
[1737290586491,0.07130899,104690.0,104680.0,0.59207822]
[1737290587103,0.07130899,104690.0,104680.0,0.37993109]
[1737290588640,0.07130899,104690.0,104680.0,0.37341109]
[1737290588845,0.07130899,104690.0,104680.0,0.37993109]
[1737290589366,0.07130899,104690.0,104680.0,0.3815468]
[1737290591362,0.04680077,104690.0,104680.0,0.25452309]
[1737290591544,0.12650077,104690.0,104680.0,0.25452309]
[1737290591717,0.12650077,104690.0,104680.0,0.24804309]
[1737290591917,0.12650077,104690.0,104680.0,0.25452309]
[1737290594955,0.12650077,104690.0,104680.0,0.25290738]
[1737290600958,0.22202077,104690.0,104680.0,0.10290738]
[1737290601165,0.12650077,104690.0,104680.0,0.10290738]
[1737290610234,0.19780899,104690.0,104680.0,0.10290738]
[1737290610411,0.11810899,104690.0,104680.0,0.10290738]
[1737290611371,0.04680077,104690.0,104680.0,0.10290738]
[1737290611571,0.07130899,104690.0,104680.0,0.10290738]
[1737290612240,0.07130899,104690.0,104680.0,0.20310337]
[1737290612386,0.07130899,104690.0,104680.0,0.35214819]
[1737290612844,0.07577473,104690.0,104680.0,0.35214819]
[1737290613605,0.00446651,104690.0,104680.0,0.37514819]
[1737290613805,0.00446651,104690.0,104680.0,0.45834819]
[1737290614927,0.00446651,104690.0,104680.0,0.45996663]
[1737290617179,0.00446651,104690.0,104680.0,0.45834819]
[1737290617824,0.00446651,104690.0,104680.0,0.50804819]
[1737290619028,0.00446651,104690.0,104680.0,0.59290704]
[1737290621937,0.00446651,104690.0,104680.0,0.53672704]
[1737290622259,0.00446651,104690.0,104680.0,0.54320704]
[1737290622444,0.00446651,104690.0,104680.0,0.4671747]
[1737290623050,0.0044771,104690.0,104680.0,0.4671747]
[1737290623545,0.0044771,104690.0,104680.0,0.47314845]
[1737290624878,0.07578532,104690.0,104680.0,0.36046845]
[1737290625198,0.12518532,104690.0,104680.0,0.35812194]
[1737290625610,0.20718532,104690.0,104680.0,0.35812194]
[1737290628996,0.1358771,104690.0,104680.0,0.25888113]
[1737290629199,0.1358771,104690.0,104680.0,0.10888113]
[1737290630021,0.1358771,104690.0,104680.0,0.10240113]
[1737290630373,0.1358771,104690.0,104680.0,0.10888113]
[1737290633895,0.1358771,104690.0,104680.0,0.10240113]
[1737290634109,0.20718532,104690.0,104680.0,0.10888113]
[1737290634283,0.07578532,104690.0,104680.0,0.20812194]
[1737290636625,0.12288532,104690.0,104680.0,0.20812194]
[1737290638072,0.1272771,104690.0,104680.0,0.10240113]
[1737290638436,0.1272771,104690.0,104680.0,0.10888113]
[1737290640596,0.1272771,104690.0,104680.0,0.10240113]
[1737290640732,0.1272771,104690.0,104680.0,0.10888113]
[1737290645264,0.2227971,104690.0,104680.0,0.01335213]
[1737290645623,0.2227971,104690.0,104680.0,0.10888113]
[1737290645826,0.1272771,104690.0,104680.0,0.10888113]
[1737290646037,0.2227971,104690.0,104680.0,0.10888113]
[1737290647101,0.2227971,104690.0,104680.0,0.10240113]
[1737290647976,0.1272771,104690.0,104680.0,0.10240113]
[1737290649350,0.2227971,104690.0,104680.0,0.10240113]
[1737290649790,0.23191238,104690.0,104680.0,0.10240113]
[1737290649967,0.43115319,104690.0,104680.0,0.00687213]
[1737290650105,0.43115319,104690.0,104680.0,0.10240113]
[1737290650310,0.43115319,104690.0,104680.0,0.00687213]
[1737290650756,0.58115319,104690.0,104680.0,0.00687213]
[1737290651670,0.79556366,104690.0,104680.0,0.00687213]
[1737290652433,0.64556366,104690.0,104680.0,0.00687213]
[1737290652632,0.96709204,104690.0,104680.0,0.00687213]
[1737290653127,0.81709204,104690.0,104680.0,0.10240113]
[1737290653532,0.96709204,104690.0,104680.0,0.10240113]
[1737290653947,0.51321595,104690.0,104680.0,0.10240113]
[1737290654305,0.51321595,104690.0,104680.0,0.10888113]
[1737290654911,0.1272771,104690.0,104680.0,0.10888113]
[1737290662589,0.1272771,104690.0,104680.0,0.10240113]
[1737290662727,0.1272771,104690.0,104680.0,0.10888113]
[1737290665367,0.42203791,104690.0,104680.0,0.01335213]
[1737290666333,0.57203791,104690.0,104680.0,0.00687213]
[1737290666463,0.47203791,104690.0,104680.0,0.00687213]
[1737290667304,0.85797676,104690.0,104680.0,0.00687213]
[1737290667540,0.85797676,104690.0,104680.0,0.00089838]
[1737290668551,0.68644838,104690.0,104680.0,0.00089838]
[1737290669347,0.72910849,104690.0,104680.0,0.00089838]
[1737290670844,0.74843271,104690.0,104680.0,0.00089838]
[1737290672833,0.89843271,104690.0,104680.0,0.00089838]
[1737290673051,0.74843271,104690.0,104680.0,0.00089838]
[1737290673480,0.78476328,104690.0,104680.0,0.00089838]
[1737290673704,0.291738,104670.0,104660.0,0.00597667]
[1737290673916,0.46947881,104670.0,104660.0,0.00597667]
[1737290674130,0.47376325,104670.0,104660.0,0.00597667]
[1737290674574,0.73105582,104670.0,104660.0,0.00597667]
[1737290674950,0.320256,104650.0,104640.0,0.01335547]
[1737290675202,0.42374083,104650.0,104640.0,0.01335547]
[1737290676201,0.42374083,104650.0,104640.0,0.10906291]
[1737290677040,0.50949556,104650.0,104640.0,0.10308624]
[1737290677597,0.50949556,104650.0,104640.0,0.00752124]
[1737290677857,0.42374083,104650.0,104640.0,0.00752124]
[1737290678258,0.42374083,104650.0,104640.0,0.10308624]
[1737290682214,0.00424402,104650.0,104640.0,0.09660624]
[1737290682421,0.00424402,104650.0,104640.0,0.18344624]
[1737290682756,0.21438682,104660.0,104640.0,0.08788124]
[1737290682961,0.18918309,104660.0,104650.0,0.095556]
[1737290684047,0.10342836,104660.0,104650.0,0.095556]
[1737290688947,0.10342836,104660.0,104650.0,0.10153307]
[1737290694668,0.00418755,104660.0,104650.0,0.18243307]
[1737290694876,0.00418755,104660.0,104650.0,0.22973307]
[1737290695276,1.36057111,104680.0,104670.0,0.095538]
[1737290695636,1.26875392,104680.0,104670.0,0.095538]
[1737290696048,0.66847081,104680.0,104670.0,0.095538]
[1737290696249,0.57294081,104680.0,104670.0,0.095538]
[1737290697528,0.66846981,104680.0,104670.0,0.095538]
[1737290698017,0.66846981,104680.0,104670.0,0.10151427]
[1737290698195,0.67775146,104680.0,104670.0,0.10151427]
[1737290698703,0.67775146,104680.0,104670.0,0.00597627]
[1737290699118,0.67775146,104680.0,104670.0,0.10151427]
[1737290699502,0.68202327,104680.0,104670.0,0.10151427]
[1737290700995,0.68292208,104680.0,104670.0,0.10151427]
[1737290703361,0.68292208,104680.0,104670.0,0.00597627]
[1737290704728,0.76867681,104680.0,104670.0,0.00597627]
[1737290704932,0.51627681,104680.0,104670.0,0.00597627]
[1737290705616,0.19554,104670.0,104650.0,0.42237479]
[1737290705817,0.00425905,104660.0,104650.0,0.56618679]
[1737290706024,0.00425905,104660.0,104650.0,0.37507479]
[1737290707188,0.00425905,104660.0,104650.0,0.38105106]
[1737290711087,0.56591736,104680.0,104670.0,0.095538]
[1737290711283,0.66515817,104680.0,104670.0,0.101978]
[1737290711532,0.83666763,104680.0,104670.0,0.101978]
[1737290711748,0.83666763,104680.0,104670.0,0.10795427]
[1737290712403,0.93219663,104680.0,104670.0,0.01241627]
[1737290712605,0.95319663,104680.0,104670.0,0.00597627]
[1737290712813,1.25319663,104680.0,104670.0,0.00597627]
[1737290713270,1.25319663,104680.0,104660.0,0.00709479]
[1737290713271,0.366538,104670.0,104660.0,0.00709479]
[1737290713475,0.61577881,104670.0,104660.0,0.00709479]
[1737290714249,0.195547,104660.0,104650.0,0.000428]
[1737290714574,0.37416806,104660.0,104650.0,0.000428]
[1737290714774,0.27862106,104660.0,104650.0,0.000428]
[1737290715116,0.37416806,104660.0,104650.0,0.000428]
[1737290715598,0.45997693,104660.0,104650.0,0.000428]
[1737290715799,0.45997693,104660.0,104650.0,0.00640522]
[1737290716393,0.35997693,104660.0,104650.0,0.00640522]
[1737290716758,0.53540902,104660.0,104650.0,0.00640522]
[1737290717353,0.56377112,104660.0,104650.0,0.00640522]
[1737290717505,0.86377112,104660.0,104650.0,0.00640522]
[1737290719742,0.77796225,104660.0,104650.0,0.000428]
[1737290719947,1.16385854,104660.0,104650.0,0.000428]
[1737290720819,1.03522645,104660.0,104650.0,0.000428]
[1737290722580,0.88522645,104660.0,104650.0,0.000428]
[1737290722786,1.03522645,104660.0,104650.0,0.000428]
[1737290723029,0.88522645,104660.0,104650.0,0.000428]
[1737290724355,1.00421913,104660.0,104650.0,0.000428]
[1737290724558,1.09976613,104660.0,104650.0,0.000428]
[1737290724768,1.24976613,104660.0,104650.0,0.000428]
[1737290724974,1.24976613,104660.0,104650.0,0.00640532]
[1737290725331,1.0353793,104660.0,104650.0,0.00640532]
[1737290725930,0.8853793,104660.0,104650.0,0.00640532]
[1737290726113,1.0353793,104660.0,104650.0,0.00640532]
[1737290727547,0.8853793,104660.0,104650.0,0.00640532]
[1737290727750,1.0353793,104660.0,104650.0,0.00640532]
[1737290727950,0.8853793,104660.0,104650.0,0.00640532]
[1737290728144,1.0353793,104660.0,104650.0,0.00640532]
[1737290729583,1.0353793,104660.0,104650.0,0.000428]
[1737290729802,0.94956343,104660.0,104650.0,0.000428]
[1737290730026,1.16395026,104660.0,104650.0,0.000428]
[1737290730229,1.01395026,104660.0,104650.0,0.000428]
[1737290730361,1.16395026,104660.0,104650.0,0.000428]
[1737290730987,1.18695026,104660.0,104650.0,0.000428]
[1737290731527,1.88546726,104660.0,104650.0,0.000428]
[1737290731732,1.78622645,104660.0,104650.0,0.000428]
[1737290732744,1.65762273,104660.0,104650.0,0.000428]
[1737290738332,1.65334248,104660.0,104650.0,0.000428]
[1737290740955,0.77534248,104660.0,104650.0,0.000428]
[1737290742825,1.07984248,104660.0,104650.0,0.000428]
[1737290743029,0.95794248,104660.0,104650.0,0.000428]
[1737290744305,1.3006914,104660.0,104650.0,0.000428]
[1737290745418,1.4992914,104660.0,104650.0,0.000428]
[1737290745739,1.4506914,104660.0,104650.0,0.000428]
[1737290746160,1.3006914,104660.0,104650.0,0.000428]
[1737290747768,1.4506914,104660.0,104650.0,0.000428]
[1737290748907,1.3006914,104660.0,104650.0,0.000428]
[1737290749107,1.4506914,104660.0,104650.0,0.000428]
[1737290750030,1.36497119,104660.0,104650.0,0.000428]
[1737290750547,1.21497119,104660.0,104650.0,0.000428]
[1737290750972,1.31497119,104660.0,104650.0,0.000428]
[1737290751171,1.29559427,104660.0,104650.0,0.000428]
[1737290751515,1.44559427,104660.0,104650.0,0.000428]
[1737290751713,1.29559427,104660.0,104650.0,0.000428]
[1737290751978,1.44559427,104660.0,104650.0,0.000428]
[1737290752774,1.54559427,104660.0,104650.0,0.000428]
[1737290754468,1.39559427,104660.0,104650.0,0.000428]
[1737290755133,1.54559427,104660.0,104650.0,0.000428]
[1737290756260,1.41701395,104660.0,104650.0,0.000428]
[1737290757773,1.26701395,104660.0,104650.0,0.000428]
[1737290757994,1.41701395,104660.0,104650.0,0.000428]
[1737290758193,1.26701395,104660.0,104650.0,0.000428]
[1737290758388,1.24557352,104660.0,104650.0,0.000428]
[1737290758772,1.09557352,104660.0,104650.0,0.000428]
[1737290759123,1.24557352,104660.0,104650.0,0.000428]
[1737290759326,1.50286609,104660.0,104650.0,0.000428]
[1737290760993,1.28856556,104660.0,104650.0,0.000428]
[1737290762415,1.26786556,104660.0,104650.0,0.000428]
[1737290762998,1.26638556,104660.0,104650.0,0.000428]
[1737290763399,1.33828556,104660.0,104650.0,0.000428]
[1737290764610,0.195565,104640.0,104630.0,0.07621863]
[1737290764810,0.3643,104630.0,104620.0,0.102024]
[1737290765016,0.46354081,104630.0,104620.0,0.102024]
[1737290765590,0.49140511,104630.0,104620.0,0.102024]
[1737290766043,0.3643,104630.0,104620.0,0.25781962]
[1737290766266,0.345185,104630.0,104620.0,0.39746481]
[1737290766474,0.38675643,104640.0,104630.0,0.291774]
[1737290766678,0.25865643,104640.0,104630.0,0.57341387]
[1737290766887,0.24862112,104650.0,104630.0,0.42224081]
[1737290767086,0.31992934,104650.0,104640.0,0.095565]
[1737290767502,0.24862112,104650.0,104640.0,0.095565]
[1737290767703,0.24862112,104650.0,104640.0,0.117065]
[1737290767909,0.24862112,104650.0,104640.0,0.2826052]
[1737290768106,0.10004962,104660.0,104650.0,0.095556]
[1737290768358,0.19929043,104660.0,104650.0,0.095556]
[1737290768582,0.19929043,104660.0,104650.0,0.101996]
[1737290769195,0.19929043,104660.0,104650.0,0.107973]
[1737290769605,0.59929043,104660.0,104650.0,0.107973]
[1737290769886,0.92093743,104660.0,104650.0,0.012417]
[1737290770097,0.82539043,104660.0,104650.0,0.107973]
[1737290771882,0.92093743,104660.0,104650.0,0.012417]
[1737290772083,0.82539043,104660.0,104650.0,0.101996]
[1737290772460,0.8344124,104660.0,104650.0,0.101996]
[1737290773541,0.9299594,104660.0,104650.0,0.00644]
[1737290773784,1.2574594,104660.0,104650.0,0.006868]
[1737290774174,1.25835821,104660.0,104650.0,0.006868]
[1737290775284,1.15835821,104660.0,104650.0,0.000428]
[1737290777627,1.06281121,104660.0,104650.0,0.095984]
[1737290778036,1.27742651,104660.0,104650.0,0.095984]
[1737290778836,1.27742651,104660.0,104650.0,0.000428]
[1737290779006,1.37297351,104660.0,104650.0,0.000428]
[1737290779807,1.04547351,104660.0,104650.0,0.000428]
[1737290781238,0.94992651,104660.0,104650.0,0.000428]
[1737290781438,1.04547351,104660.0,104650.0,0.000428]
[1737290781868,1.34547351,104660.0,104650.0,0.00640538]
[1737290782544,1.21670342,104660.0,104650.0,0.00640538]
[1737290782955,1.21670342,104660.0,104650.0,0.000428]
[1737290783547,1.73203116,104660.0,104650.0,0.000428]
[1737290784114,1.51716647,104660.0,104650.0,0.000428]
[1737290787807,1.22161947,104660.0,104650.0,0.095984]
[1737290788220,1.43648416,104660.0,104650.0,0.095984]
[1737290789464,1.04992651,104660.0,104650.0,0.095984]
[1737290789590,1.04992651,104660.0,104650.0,0.10196136]
[1737290792531,1.22161947,104660.0,104650.0,0.10196136]
[1737290793106,1.20182847,104660.0,104650.0,0.10196136]
[1737290793509,0.86746569,104660.0,104650.0,0.10196136]
[1737290793738,0.93877391,104660.0,104650.0,0.14214882]
[1737290793895,0.93877391,104660.0,104650.0,0.1517126]
[1737290794296,0.93877391,104660.0,104650.0,0.13302514]
[1737290794520,0.93877391,104660.0,104650.0,0.28302514]
[1737290794884,0.48115743,104660.0,104650.0,0.28302514]
[1737290795296,0.48115743,104660.0,104650.0,0.38226595]
[1737290796118,0.48115743,104660.0,104650.0,0.76567103]
[1737290797502,0.48115743,104660.0,104650.0,0.77499398]
[1737290797706,0.36411243,104660.0,104650.0,0.95731693]
[1737290797881,0.36411243,104660.0,104650.0,0.97640464]
[1737290798112,0.30678543,104660.0,104650.0,0.97640464]
[1737290798318,0.26856743,104660.0,104650.0,0.97640464]
[1737290798910,0.26856743,104660.0,104650.0,0.9748644]
[1737290799090,0.23034943,104660.0,104650.0,0.9748644]
[1737290799252,0.17302243,104660.0,104650.0,0.9748644]
[1737290799880,0.17302243,104660.0,104650.0,1.1025421]
[1737290800139,0.11569543,104660.0,104650.0,1.1089421]
[1737290800350,0.07747743,104660.0,104650.0,1.1089421]
[1737290800746,0.07747743,104660.0,104650.0,0.9812644]
[1737290800952,0.07747743,104660.0,104650.0,0.84023847]
[1737290801155,0.02015043,104660.0,104650.0,0.84023847]
[1737290801431,4.3e-07,104660.0,104650.0,0.84023847]
[1737290803283,4.3e-07,104660.0,104650.0,0.84932182]
[1737290803456,4.3e-07,104660.0,104650.0,1.01920409]
[1737290804054,4.3e-07,104660.0,104650.0,1.01280409]
[1737290804256,4.3e-07,104660.0,104650.0,1.01920409]
[1737290804819,4.3e-07,104660.0,104650.0,1.14657542]
[1737290805745,4.3e-07,104660.0,104650.0,0.93442829]
[1737290806494,4.3e-07,104660.0,104650.0,1.01929576]
[1737290806699,4.3e-07,104660.0,104650.0,1.01289576]
[1737290806902,4.3e-07,104660.0,104650.0,1.01929576]
[1737290807767,4.3e-07,104660.0,104650.0,0.84941349]
[1737290809229,4.3e-07,104660.0,104650.0,1.01929576]
[1737290810849,4.3e-07,104660.0,104650.0,1.07665576]
[1737290811284,0.00446043,104670.0,104660.0,0.29723878]
[1737290811534,0.00446043,104670.0,104660.0,0.39647959]
[1737290812039,0.00446043,104670.0,104660.0,0.41202073]
[1737290812628,0.00446043,104670.0,104660.0,0.49680752]
[1737290815597,0.00446043,104670.0,104660.0,0.41202073]
[1737290819204,0.00446043,104670.0,104660.0,0.41842073]
[1737290819436,4.3e-07,104670.0,104660.0,0.43686346]
[1737290819686,4.3e-07,104670.0,104660.0,0.58686346]
[1737290821753,2.4e-07,104670.0,104660.0,0.58686346]
[1737290821985,0.02447505,104680.0,104670.0,0.44722978]
[1737290822225,5e-08,104680.0,104670.0,0.54647059]
[1737290822719,0.04358686,104690.0,104680.0,0.245529]
[1737290822889,0.04358686,104690.0,104680.0,0.34476981]
[1737290823508,0.04358686,104690.0,104680.0,0.36776981]
[1737290824490,0.04358686,104690.0,104680.0,0.38331095]
[1737290829132,0.04358686,104690.0,104680.0,0.71957795]
[1737290829663,8.6e-07,104690.0,104680.0,0.75746767]
[1737290829875,0.1754,104700.0,104690.0,0.11852]
[1737290830074,0.02373441,104700.0,104690.0,0.37511582]